bitfinex/quotes_ETHUSD_20241106
["timestamp","ask_amount","ask_price","bid_price","bid_amount"]
[1730908626278,0.55,2641.3,2640.5,0.7946]
[1730908626434,2.48041452,2641.3,2640.5,0.7946]
[1730908627080,3.27,2641.4,2640.6,0.07573304]
[1730908627247,3.78525,2641.9,2640.8,0.8082]
[1730908627454,3.78525,2641.9,2640.9,0.753]
[1730908627704,3.78532,2641.8,2640.9,0.753]
[1730908627859,3.78561,2641.6,2640.9,0.753]
[1730908628074,0.378561,2641.5,2640.9,0.753]
[1730908628248,3.78544,2641.7,2640.9,0.753]
[1730908628771,3.78558,2641.6,2640.9,0.753]
[1730908628940,3.78594,2641.4,2640.9,0.753]
[1730908629141,3.0,2641.5,2640.9,0.753]
[1730908629452,3.0,2641.3,2640.9,0.753]
[1730908629641,1.10394102,2641.2,2640.9,0.753]
[1730908631081,1.10394102,2641.2,2640.6,0.7653]
[1730908631508,0.55,2641.3,2640.6,0.7653]
[1730908631781,3.27,2641.5,2640.8,0.7715]
[1730908631991,7.57024,2642.0,2641.0,0.7715]
[1730908632146,8.35902,2642.0,2641.1,0.07571752]
[1730908632342,3.78523,2641.9,2640.8,0.8169]
[1730908632694,3.78544,2641.7,2640.8,0.8169]
[1730908633141,3.78518,2641.9,2640.8,0.8169]
[1730908633345,4.007401,2641.8,2640.9,0.7698]
[1730908633558,4.007401,2641.8,2641.1,0.7698]
[1730908634283,3.0,2641.6,2641.1,0.7698]
[1730908635087,6.78559,2641.6,2641.1,0.7698]
[1730908635517,3.78557,2641.7,2641.1,0.7698]
[1730908635840,6.78515,2641.9,2641.2,0.8279]
[1730908636039,4.22941024,2642.4,2641.2,0.8279]
[1730908636279,3.78458,2642.3,2641.4,0.7849]
[1730908636498,3.27,2642.4,2641.4,0.7841]
[1730908636658,3.27,2642.4,2641.5,0.85979776]
[1730908636855,3.27,2642.4,2641.7,0.7841]
[1730908637384,3.7846,2642.3,2641.7,0.7841]
[1730908638398,4.33468,2642.3,2641.7,0.7841]
[1730908638601,4.33465,2642.3,2641.7,0.7841]
[1730908638808,0.55,2642.3,2641.7,0.7841]
[1730908639214,3.78472,2642.2,2641.7,0.7841]
[1730908639395,3.78499,2642.1,2641.7,0.7841]
[1730908639708,3.78501,2642.0,2641.7,0.7841]
[1730908641682,3.78529,2641.8,2641.7,0.7841]
[1730908642212,3.78516,2641.9,2641.7,0.7841]
[1730908642583,3.78529,2641.8,2641.7,0.7841]
[1730908642787,1.057045,2641.8,2641.7,0.7841]
[1730908642987,3.78516,2641.9,2641.7,0.7841]
[1730908643388,3.78529,2641.8,2641.7,0.7841]
[1730908644811,3.78529,2641.8,2641.3,12.18]
[1730908645013,3.78559,2641.6,2641.4,0.8028]
[1730908645514,3.78553,2641.7,2641.4,0.8028]
[1730908645819,3.78572,2641.5,2641.4,0.8028]
[1730908646019,4.542693,2641.6,2640.3,3.06681684]
[1730908646020,0.55,2641.1,2640.5,0.8203]
[1730908646221,3.78676,2640.8,2640.5,0.8203]
[1730908647319,3.78699,2640.7,2640.5,0.8203]
[1730908647531,3.78699,2640.7,2639.4,0.01]
[1730908647532,3.78701,2640.6,2640.2,0.7597]
[1730908647744,7.57482,2640.4,2640.2,0.7597]
[1730908647876,3.78739,2640.4,2640.2,0.75869513]
[1730908648319,3.78744,2640.3,2640.2,0.75869513]
[1730908648728,3.78744,2640.3,2639.3,12.18]
[1730908648729,3.78767,2640.2,2639.3,12.18]
[1730908648923,3.78744,2640.3,2639.4,12.25575554]
[1730908649092,3.78744,2640.3,2639.4,12.18]
[1730908649432,3.78744,2640.3,2639.5,0.07575387]
[1730908649727,3.78724,2640.5,2639.5,0.07575387]
[1730908649931,3.78724,2640.5,2639.4,12.18]
[1730908650100,3.78702,2640.6,2639.5,1.3398]
[1730908650420,3.78697,2640.7,2639.5,1.3398]
[1730908650625,3.78697,2640.7,2639.5,4.3398]
[1730908650990,3.78701,2640.6,2639.6,0.8032]
[1730908651185,3.78697,2640.7,2639.8,0.8032]
[1730908651411,3.78697,2640.7,2640.0,0.8032]
[1730908651590,3.78669,2640.9,2640.2,0.8032]
[1730908651792,7.57336,2640.9,2640.2,0.8032]
[1730908651995,3.0,2641.0,2640.4,0.8032]
[1730908651996,6.78645,2641.0,2640.4,0.8032]
[1730908652197,3.78645,2641.0,2640.4,12.9832]
[1730908652401,3.78645,2641.0,2640.5,1.218]
[1730908652801,3.78667,2640.9,2640.4,12.9832]
[1730908652999,3.78697,2640.7,2640.4,12.9832]
[1730908653332,3.78695,2640.7,2640.4,12.9832]
[1730908653827,3.7871,2640.6,2640.4,12.9832]
[1730908654122,3.78679,2640.8,2640.4,12.9832]
[1730908654330,7.57365,2640.8,2640.4,12.9832]
[1730908654542,3.78679,2640.8,2640.4,12.9832]
[1730908654889,3.78696,2640.7,2640.4,12.9832]
[1730908655324,3.78679,2640.8,2640.4,12.9832]
[1730908655511,3.78644,2641.0,2640.5,1.29832]
[1730908655845,3.78644,2641.0,2640.4,12.9832]
[1730908656330,3.7868,2640.8,2640.4,0.8032]
[1730908656511,7.57362,2640.8,2640.4,0.8032]
[1730908656692,3.7868,2640.8,2640.4,0.8032]
[1730908657513,3.78654,2641.0,2640.4,0.8032]
[1730908657814,4.33265968,2640.9,2640.4,0.8032]
[1730908658214,3.78679,2640.8,2640.4,0.8032]
[1730908658621,0.54603968,2640.9,2640.4,0.8032]
[1730908659028,4.33264968,2640.9,2640.4,0.8032]
[1730908659658,0.54603968,2640.9,2640.4,0.8032]
[1730908660313,4.33263968,2640.9,2640.4,0.8032]
[1730908660519,4.22006397,2640.8,2640.4,0.8032]
[1730908660860,3.78728,2640.5,2639.9,0.8054]
[1730908661029,3.78716,2640.5,2639.9,12.9854]
[1730908661217,3.7877,2640.2,2639.9,12.9854]
[1730908661418,4.16647,2640.2,2639.9,12.9854]
[1730908662636,4.16647,2640.2,2639.9,0.8054]
[1730908662825,3.78785,2640.1,2639.9,0.8054]
[1730908663451,4.16637,2640.2,2639.9,0.8054]
[1730908663766,7.95404,2640.2,2639.9,0.8054]
[1730908663921,0.795404,2640.1,2639.9,0.8054]
[1730908664521,3.7876,2640.2,2639.9,0.8054]
[1730908664920,3.78781,2640.1,2639.9,0.8054]
[1730908665121,3.78787,2640.0,2639.7,0.05683659]
[1730908665388,3.78781,2640.1,2639.7,0.05683659]
[1730908665847,7.57568,2640.1,2639.7,0.05683659]
[1730908666051,8.333248,2640.1,2639.7,0.05683659]
[1730908666289,4.545378,2640.1,2639.7,0.05683659]
[1730908666462,0.757568,2640.1,2639.7,0.05683659]
[1730908666661,3.78762,2640.2,2639.7,0.05683659]
[1730908667496,4.33759,2640.2,2639.7,0.05683659]
[1730908667660,3.78802,2639.9,2639.7,0.05683659]
[1730908667867,0.55,2640.2,2639.7,0.05683659]
[1730908668075,3.7876,2640.2,2639.7,0.05683659]
[1730908668253,4.900101,2640.2,2639.7,0.05683659]
[1730908668575,3.78776,2640.1,2639.7,0.05683659]
[1730908668893,3.78791,2640.0,2639.7,0.05683659]
[1730908669560,3.78814,2639.9,2639.7,0.05683659]
[1730908669768,3.7876,2640.2,2639.6,0.8153]
[1730908669990,3.7876,2640.2,2639.3,0.7792]
[1730908669991,3.7883,2639.7,2639.3,0.7792]
[1730908670292,3.78848,2639.6,2639.3,0.7792]
[1730908670988,0.55,2640.3,2639.4,0.07577339]
[1730908671192,3.78781,2640.1,2639.5,0.8001]
[1730908671853,3.78789,2640.0,2639.5,0.8001]
[1730908672483,3.55,2640.0,2639.5,0.8001]
[1730908672670,3.78845,2639.6,2639.3,0.7741]
[1730908673096,3.78867,2639.5,2639.3,0.7741]
[1730908673304,4.546369,2639.5,2639.3,0.7741]
[1730908673587,3.78873,2639.4,2639.0,0.8127]
[1730908673802,8.335079,2639.5,2639.0,0.8127]
[1730908674021,8.335099,2639.5,2639.0,0.8127]
[1730908674222,8.335049,2639.5,2639.0,0.8127]
[1730908674542,4.546369,2639.5,2639.0,0.8127]
[1730908675225,3.78874,2639.4,2639.0,0.8127]
[1730908675434,8.335059,2639.5,2639.0,0.8127]
[1730908675608,4.546369,2639.5,2639.0,0.8127]
[1730908675791,8.335049,2639.5,2639.0,0.8127]
[1730908676197,4.6222749,2639.4,2639.0,0.8127]
[1730908676415,3.0,2639.7,2639.0,0.8127]
[1730908676621,4.33852,2639.6,2639.0,0.8127]
[1730908677299,8.12709,2639.6,2639.0,0.8127]
[1730908677639,5.151229,2639.6,2639.0,0.8127]
[1730908677793,4.33852,2639.6,2639.0,0.8127]
[1730908677994,3.78875,2639.4,2639.0,0.8127]
[1730908678804,3.7886,2639.5,2639.0,0.8127]
[1730908679021,3.78875,2639.4,2639.0,0.8127]
[1730908679533,3.78861,2639.5,2639.0,0.8127]
[1730908679740,4.222462,2639.5,2639.0,0.8127]
[1730908680033,4.222512,2639.5,2639.0,0.8127]
[1730908680217,3.0,2639.6,2639.0,0.8127]
[1730908680421,3.78841,2639.7,2639.0,0.8127]
[1730908680641,0.55,2639.8,2639.0,0.8127]
[1730908680809,3.78859,2639.5,2639.0,0.8127]
[1730908681009,0.433859,2639.4,2639.0,0.8127]
[1730908681516,4.222659,2639.4,2639.0,0.8127]
[1730908681726,0.433859,2639.4,2639.0,0.8127]
[1730908682038,7.05779,2640.1,2639.0,0.8127]
[1730908682244,7.05779,2640.1,2639.2,0.7973]
[1730908682746,10.84565,2640.1,2639.2,0.7973]
[1730908682947,8.262099,2640.1,2639.2,0.7973]
[1730908683238,3.27,2640.1,2639.4,0.7973]
[1730908683407,3.78798,2640.0,2639.4,0.7973]
[1730908683732,3.78802,2640.0,2639.4,0.7973]
[1730908683945,3.78806,2639.9,2639.4,0.7973]
[1730908684240,3.78788,2640.0,2639.4,0.7973]
[1730908684408,7.57586,2640.0,2639.4,0.7973]
[1730908684731,0.55,2640.0,2639.4,0.7973]
[1730908684901,0.55,2640.0,2639.4,2.09503]
[1730908685098,3.27,2640.1,2639.5,0.8735676]
[1730908685358,10.57484,2640.4,2639.5,0.7978]
[1730908685508,0.55,2640.3,2639.5,0.7978]
[1730908685849,0.55,2640.3,2639.7,0.8021]
[1730908686252,4.33748,2640.3,2639.7,0.8021]
[1730908687302,0.55,2640.3,2639.7,0.8021]
[1730908688254,6.78731,2640.4,2639.7,0.87786191]
[1730908688758,3.0,2640.4,2639.7,0.87786191]
[1730908690556,7.11725,2640.5,2639.7,0.87786191]
[1730908690711,0.55,2640.4,2639.7,0.87786191]
[1730908690918,0.55,2640.4,2639.7,2.2046034]
[1730908691761,3.27,2640.9,2639.8,12.18]
[1730908691958,7.05667,2640.9,2639.9,0.7754]
[1730908692159,3.27,2640.9,2639.9,0.7754]
[1730908692819,3.27,2640.9,2640.0,0.07574049]
[1730908693020,3.27,2640.9,2640.1,0.7972]
[1730908693220,3.27,2640.9,2639.8,12.18]
[1730908693221,3.27,2640.9,2640.3,0.7972]
[1730908694132,3.78638,2641.1,2640.3,0.7972]
[1730908694346,3.55,2641.0,2640.3,0.7972]
[1730908695847,7.33645,2641.0,2640.3,0.7972]
[1730908696057,3.55,2641.0,2640.3,0.7972]
[1730908696768,3.45,2641.0,2640.3,0.7972]
[1730908697754,7.23646,2641.0,2640.3,0.7972]
[1730908698155,4.03318437,2641.0,2640.3,0.7972]
[1730908698355,7.81962437,2641.0,2640.3,0.7972]
[1730908698540,4.03318437,2641.0,2640.3,0.7972]
[1730908698872,3.0,2641.2,2640.3,0.7972]
[1730908699207,6.78617,2641.2,2640.3,0.7972]
[1730908699373,3.78631,2641.1,2640.3,0.7972]
[1730908699529,3.78652,2641.0,2640.3,0.7972]
[1730908700923,0.55,2641.1,2640.3,0.7972]
[1730908701127,2.03155059,2641.1,2640.3,0.7972]
[1730908701956,1.48155059,2641.1,2640.3,0.7972]
[1730908702526,5.26793059,2641.1,2640.3,0.7972]
[1730908704025,1.48155059,2641.1,2640.3,0.7972]
[1730908704593,5.26786059,2641.1,2640.3,0.7972]
[1730908705129,1.20541106,2641.0,2640.3,0.7972]
[1730908705337,3.78632,2641.1,2640.3,0.7972]
[1730908705838,3.69296594,2640.7,2640.3,0.7972]
[1730908705982,3.78755,2640.3,2640.0,0.7615]
[1730908706188,7.48027594,2640.4,2640.0,0.7615]
[1730908706492,3.78745,2640.3,2640.0,0.7615]
[1730908706695,3.78773,2640.1,2639.7,0.7504]
[1730908706897,3.78755,2640.3,2639.7,0.7504]
[1730908706898,3.78759,2640.2,2639.7,0.7504]
[1730908707596,3.0,2640.2,2639.7,0.7504]
[1730908708305,7.33737,2640.4,2639.7,0.7504]
[1730908708510,3.78754,2640.3,2639.7,0.7504]
[1730908708908,0.55,2640.4,2639.7,0.7504]
[1730908708909,7.33732,2640.4,2639.7,0.7504]
[1730908709144,0.01,2641.4,2639.9,0.7512]
[1730908709444,3.78582,2641.5,2640.3,0.7512]
[1730908709797,3.7855,2641.7,2640.5,0.7512]
[1730908710041,0.8269,2642.1,2640.7,0.7645]
[1730908710254,3.78496,2642.1,2640.9,0.7645]
[1730908710542,3.78503,2642.0,2640.9,0.7645]
[1730908710737,3.78496,2642.1,2640.9,0.7645]
[1730908711040,3.78505,2642.0,2640.9,0.7645]
[1730908711541,4.33505,2642.0,2640.9,0.7645]
[1730908711727,0.55,2642.0,2640.9,0.7645]
[1730908712434,3.55,2642.0,2640.9,0.7645]
[1730908715534,3.55,2642.0,2640.9,12.18]
[1730908715856,3.55,2642.0,2641.1,0.8061]
[1730908717163,4.33501,2642.0,2641.1,0.8061]
[1730908717859,3.69296594,2642.8,2641.2,0.8178]
[1730908718069,3.78438,2642.5,2641.2,0.8178]
[1730908718226,0.378438,2642.4,2641.4,0.8178]
[1730908718430,3.78438,2642.5,2641.4,0.8178]
[1730908718737,3.78459,2642.3,2641.4,0.8178]
[1730908719460,3.78444,2642.4,2641.4,0.8178]
[1730908719769,3.78459,2642.3,2641.4,0.8178]
[1730908719971,3.69296594,2642.0,2641.4,0.8178]
[1730908720167,6.78478,2642.2,2641.4,0.8178]
[1730908720662,3.78495,2642.1,2641.4,0.8178]
[1730908720965,3.55,2641.8,2641.4,0.8178]
[1730908721173,0.733517,2641.7,2641.4,0.8178]
[1730908721464,3.7856,2641.6,2641.4,0.8178]
[1730908721873,3.78594,2641.4,2640.6,0.8323]
[1730908722163,3.78572,2641.5,2640.6,0.8323]
[1730908722663,3.78587,2641.4,2640.6,0.8323]
[1730908723022,3.78565,2641.6,2640.6,0.8323]
[1730908723023,3.0,2641.5,2640.6,0.8323]
[1730908723361,3.0,2641.5,2640.7,0.07572494]
[1730908723566,3.0,2641.5,2640.4,0.8133]
[1730908723743,3.0,2641.5,2640.5,0.88902495]
[1730908724063,6.78575,2641.5,2640.5,0.88902495]
[1730908724226,3.7859,2641.4,2640.5,0.8133]
[1730908724421,3.78589,2641.4,2640.5,0.8133]
[1730908725168,7.57183,2641.4,2640.5,0.8133]
[1730908725360,3.78589,2641.4,2640.5,0.8133]
[1730908726533,3.0,2641.5,2640.7,0.76]
[1730908726748,6.7858,2641.5,2640.9,0.76]
[1730908728178,0.733517,2641.7,2640.9,0.76]
[1730908728179,3.78517,2641.9,2640.9,0.76]
[1730908728965,3.78547,2641.7,2640.9,0.76]
[1730908729172,3.69296594,2642.3,2640.9,0.76]
[1730908729354,3.78528,2641.9,2641.0,0.7619]
[1730908729551,3.78537,2641.8,2641.0,0.7619]
[1730908730736,3.78503,2642.0,2641.0,0.7619]
[1730908730956,3.78516,2641.9,2641.0,0.7619]
[1730908731165,3.78516,2641.9,2641.2,0.7619]
[1730908731437,3.78503,2642.0,2641.2,0.7619]
[1730908731438,3.69296594,2642.0,2641.2,0.7619]
[1730908731662,3.78551,2641.7,2641.2,0.7619]
[1730908731852,3.7853,2641.8,2641.2,0.7619]
[1730908733018,3.78544,2641.7,2641.2,0.7619]
[1730908733360,3.78567,2641.6,2641.2,0.7619]
[1730908733742,3.78601,2641.3,2641.0,12.18]
[1730908733945,4.164761,2641.2,2641.0,12.18]
[1730908734870,3.78616,2641.2,2641.0,12.18]
[1730908735372,3.78668,2640.9,2640.4,0.8057]
[1730908735575,3.78681,2640.8,2640.4,0.8057]
[1730908735885,3.78667,2640.9,2640.4,0.8057]
[1730908736578,3.78644,2641.0,2640.4,0.8057]
[1730908736825,3.78716,2640.5,2639.8,0.786]
[1730908736962,7.57419,2640.6,2639.8,0.786]
[1730908737164,3.78719,2640.5,2639.8,0.786]
[1730908739163,3.78732,2640.4,2639.8,0.786]
[1730908739371,7.57474,2640.4,2639.8,0.786]
[1730908739663,3.78732,2640.4,2639.9,0.07575215]
[1730908740000,3.78716,2640.5,2639.9,0.07575215]
[1730908740223,3.78737,2640.4,2639.9,0.07575215]
[1730908740548,3.78699,2640.7,2639.9,0.07575219]
[1730908740712,3.78659,2640.9,2640.0,0.7664]
[1730908741065,3.78659,2640.9,2640.2,0.7664]
[1730908741370,3.78658,2641.0,2640.2,0.7664]
[1730908741612,3.7868,2640.8,2640.2,0.7664]
[1730908741765,3.7871,2640.6,2640.2,0.7664]
[1730908741975,3.78718,2640.5,2640.2,0.7664]
[1730908742272,3.78766,2640.2,2639.6,0.7942]
[1730908742506,3.78737,2640.4,2639.6,0.7942]
[1730908742817,3.78726,2640.5,2639.6,0.7942]
[1730908742980,3.78745,2640.3,2639.7,0.07575514]
[1730908743189,3.78745,2640.3,2639.7,1.38075065]
[1730908743874,3.78745,2640.3,2639.7,1.30499551]
[1730908744329,3.78745,2640.3,2639.8,0.07575517]
[1730908744836,3.78726,2640.5,2639.9,0.8074]
[1730908745325,3.78698,2640.7,2639.8,0.8074]
[1730908745326,6.78702,2640.6,2639.8,0.8074]
[1730908745629,6.78703,2640.6,2640.0,0.8074]
[1730908745788,3.78719,2640.5,2640.0,0.8074]
[1730908746220,7.57475,2640.4,2640.0,0.8074]
[1730908746720,3.78732,2640.4,2640.0,0.8074]
[1730908747027,3.78717,2640.5,2640.0,0.8074]
[1730908748132,3.78746,2640.3,2640.0,0.8074]
[1730908748586,3.78766,2640.2,2640.0,0.8074]
[1730908749001,3.78773,2640.1,2640.0,0.8074]
[1730908749326,3.78879,2639.4,2639.0,0.7758]
[1730908749815,3.0,2639.4,2639.0,0.7758]
[1730908750326,3.78824,2639.8,2639.0,0.7758]
[1730908750729,3.78854,2639.6,2639.0,0.7758]
[1730908751232,7.57713,2639.6,2639.0,0.7758]
[1730908751438,3.78882,2639.4,2639.0,0.7758]
[1730908752246,3.7886,2639.5,2639.0,0.7758]
[1730908752552,4.546243,2639.6,2639.0,0.7758]
[1730908753062,3.7886,2639.5,2639.0,0.7758]
[1730908753545,3.78853,2639.6,2639.0,0.7758]
[1730908753746,3.78819,2639.8,2639.0,0.7758]
[1730908753950,3.78819,2639.8,2639.1,0.07577377]
[1730908754109,7.57645,2639.8,2638.6,12.18]
[1730908754309,7.57645,2639.8,2638.7,0.7611]
[1730908754506,3.78819,2639.8,2638.9,0.8306]
[1730908754743,3.78848,2639.6,2638.9,0.8306]
[1730908755138,3.78871,2639.5,2638.9,0.8306]
[1730908756753,3.78845,2639.6,2639.0,0.07577622]
[1730908756960,3.78854,2639.6,2639.1,0.8125]
[1730908757322,3.78839,2639.7,2639.1,0.8125]
[1730908757619,3.78847,2639.6,2639.1,0.8125]
[1730908757846,3.78839,2639.7,2639.1,0.8125]
[1730908758658,3.78849,2639.6,2639.1,0.8125]
[1730908758857,3.78839,2639.7,2639.1,0.8125]
[1730908759217,3.78846,2639.6,2639.1,0.8125]
[1730908759424,3.77859193,2639.6,2639.1,0.8125]
[1730908759831,3.78839,2639.7,2639.1,0.8125]
[1730908760064,7.57683,2639.7,2639.1,0.8125]
[1730908760235,3.78839,2639.7,2639.1,0.8125]
[1730908760734,3.78845,2639.6,2639.1,0.8125]
[1730908760930,3.7886,2639.5,2639.1,0.8125]
[1730908761630,7.57684,2639.7,2639.1,0.8125]
[1730908761937,3.78851,2639.6,2639.1,0.8125]
[1730908763291,3.78839,2639.7,2639.1,0.8125]
[1730908763961,3.7885,2639.6,2639.1,0.8125]
[1730908765385,3.78839,2639.7,2639.1,0.8125]
[1730908765386,3.78861,2639.5,2639.1,0.8125]
[1730908765954,3.78839,2639.7,2639.1,0.8125]
[1730908766149,6.7882,2639.8,2639.2,0.07577591]
[1730908766551,3.78832,2639.7,2639.1,0.8125]
[1730908766758,3.78846,2639.6,2639.1,0.8125]
[1730908767755,3.78861,2639.5,2639.1,0.8125]
[1730908768418,3.78902,2639.2,2639.1,0.8125]
[1730908768619,3.78902,2639.2,2638.7,0.86418547]
[1730908768919,7.57812,2639.2,2638.7,0.7884]
[1730908769124,3.78927,2639.1,2638.7,0.7884]
[1730908769423,7.57904,2638.9,2638.7,0.7884]
[1730908769628,3.78948,2638.9,2638.5,0.7694]
[1730908769918,7.48263594,2638.8,2638.5,0.7694]
[1730908770108,3.78974,2638.7,2637.8,0.7694]
[1730908770579,3.78948,2638.9,2637.8,0.7694]
[1730908770819,3.78948,2638.9,2638.0,0.7694]
[1730908771116,3.78948,2638.9,2638.2,0.7694]
[1730908774218,11.27152594,2639.1,2638.2,0.7694]
[1730908774459,3.7894,2639.0,2638.2,0.7694]
[1730908775185,3.7894,2639.0,2638.3,0.07579774]
[1730908775660,3.7894,2639.0,2638.4,0.7532]
[1730908777136,3.7906,2638.1,2638.0,0.07579778]
[1730908777339,3.79081,2638.0,2637.7,0.7668]
[1730908777539,8.25351594,2638.5,2636.6,12.18]
[1730908777540,3.0,2638.2,2637.5,0.7668]
[1730908777757,7.48358594,2638.1,2637.5,0.7668]
[1730908777961,3.79075,2638.0,2637.5,0.7668]
[1730908778138,3.79084,2638.0,2637.5,0.7668]
[1730908778356,1.42745159,2638.0,2637.5,0.7668]
[1730908778788,3.79089,2637.9,2637.5,0.7668]
[1730908778991,3.79111,2637.8,2637.5,0.7668]
[1730908779292,3.7912,2637.7,2637.5,0.7668]
[1730908779471,3.69296594,2637.8,2637.5,0.7668]
[1730908779985,3.79119,2637.7,2637.5,0.7668]
[1730908780281,7.58245,2637.7,2636.7,0.8007]
[1730908780481,3.79132,2637.6,2636.7,0.8007]
[1730908780839,3.7915,2637.5,2636.7,0.8007]
[1730908781043,3.69296594,2637.2,2636.7,0.8007]
[1730908781344,7.48486594,2637.2,2636.7,0.8007]
[1730908781655,3.79206,2637.1,2636.7,0.8007]
[1730908781863,3.79219,2637.0,2636.7,0.8007]
[1730908782066,7.48529594,2636.9,2636.4,0.8085]
[1730908782794,3.79249,2636.8,2636.4,0.8085]
[1730908783095,7.48529594,2636.9,2636.4,0.8085]
[1730908783446,3.69296594,2636.6,2636.1,0.1307545]
[1730908783872,3.79302,2636.5,2636.1,0.1307545]
[1730908784503,3.69296594,2636.6,2634.4,0.7678]
[1730908784504,3.79403,2635.8,2634.4,0.7678]
[1730908784649,3.69296594,2635.4,2634.4,0.7678]
[1730908784988,11.03704594,2635.7,2634.6,0.7776]
[1730908785290,11.03704594,2635.7,2634.5,0.07590444]
[1730908785291,3.0,2636.0,2634.8,0.7876]
[1730908785495,6.79363,2636.0,2634.8,0.7876]
[1730908785986,3.79313,2636.4,2634.9,0.85198058]
[1730908786210,3.7933,2636.3,2635.1,0.7761]
[1730908786882,6.79249,2636.8,2635.4,0.7897]
[1730908787187,3.79239,2636.9,2635.7,0.7943]
[1730908787188,3.79235,2636.9,2635.7,0.7943]
[1730908787394,0.81011645,2636.8,2635.7,0.7943]
[1730908788287,4.60268645,2636.8,2635.7,0.7943]
[1730908788452,8.10149449,2636.7,2635.7,0.7943]
[1730908788784,3.7929,2636.5,2635.7,0.7943]
[1730908788947,3.79305,2636.4,2635.7,0.7943]
[1730908789146,3.79321,2636.3,2635.7,0.7943]
[1730908789781,5.75386645,2636.5,2635.7,0.7943]
[1730908789994,1.18943645,2636.5,2635.7,0.7943]
[1730908790286,6.7924,2636.9,2635.9,0.833]
[1730908791000,10.58483,2636.9,2635.9,0.833]
[1730908791291,6.7924,2636.9,2635.9,0.833]
[1730908791498,7.98008745,2636.9,2635.9,0.833]
[1730908792088,4.18766745,2636.9,2635.9,0.833]
[1730908792799,4.18766745,2636.9,2635.4,0.01]
[1730908792800,3.79389,2635.9,2635.4,0.7979]
[1730908792962,3.7939,2635.9,2635.4,0.7979]
[1730908793152,3.79392,2635.8,2635.4,0.7979]
[1730908793762,3.79368,2636.0,2635.4,0.7979]
[1730908793992,3.33,2636.3,2635.4,0.7979]
[1730908793993,3.33,2636.3,2635.5,0.07588761]
[1730908794192,3.33,2636.3,2635.6,0.7979]
[1730908795481,8.35106649,2636.3,2635.6,0.7979]
[1730908795895,3.79405,2635.7,2635.6,0.7979]
[1730908796196,4.30877449,2635.9,2635.6,0.7979]
[1730908796197,3.79398,2635.8,2635.6,0.7979]
[1730908796492,8.10255449,2635.9,2635.6,0.7979]
[1730908796691,4.30877449,2635.9,2635.6,0.7979]
[1730908796854,5.11902394,2635.9,2635.6,0.7979]
[1730908797462,4.30877449,2635.9,2635.6,0.7979]
[1730908797659,3.0,2636.1,2635.6,0.7979]
[1730908797898,6.79349,2636.1,2635.6,0.7979]
[1730908798075,3.79314,2636.4,2635.6,0.7979]
[1730908798279,4.172524,2636.3,2635.6,0.7979]
[1730908798607,3.79336,2636.2,2635.6,0.7979]
[1730908799604,3.79374,2636.0,2635.6,0.7979]
[1730908799913,3.79358,2636.1,2635.6,0.7979]
[1730908800740,8.48137849,2636.3,2635.7,0.07587911]
[1730908800741,4.30877449,2636.3,2635.7,0.07587911]
[1730908801025,4.30877449,2636.3,2635.6,0.7979]
[1730908801367,3.79333,2636.2,2635.6,0.7979]
[1730908801816,3.79378,2635.9,2635.6,0.7979]
[1730908802115,3.79358,2636.1,2635.6,0.7979]
[1730908802605,3.79356,2636.1,2635.6,0.7979]
[1730908802772,4.98312145,2636.1,2635.6,0.7979]
[1730908803964,1.18956145,2636.1,2635.6,0.7979]
[1730908804170,3.79334,2636.2,2635.6,0.7979]
[1730908804616,0.7815,2636.1,2635.2,0.7941]
[1730908804799,3.7934,2636.2,2635.2,0.7941]
[1730908805132,3.79348,2636.1,2635.2,0.7941]
[1730908805269,8.10209449,2636.3,2635.2,0.7941]
[1730908805470,3.79291,2636.5,2635.3,0.90407536]
[1730908805704,3.79279,2636.6,2635.4,0.01]
[1730908805890,8.10139449,2636.7,2635.5,0.765]
[1730908806096,3.79229,2637.0,2635.7,0.765]
[1730908806300,3.79199,2637.2,2635.8,0.85085239]
[1730908806516,3.79236,2636.9,2635.9,0.7904]
[1730908806807,3.79256,2636.8,2635.9,0.7904]
[1730908807010,3.79236,2636.9,2635.9,0.7904]
[1730908807011,3.79264,2636.7,2635.9,0.7904]
[1730908807175,0.758502,2636.7,2635.9,0.7904]
[1730908807506,3.79313,2636.4,2635.9,0.7904]
[1730908807966,8.10190449,2636.4,2635.9,0.7904]
[1730908808170,0.758502,2636.7,2635.9,0.7904]
[1730908808412,6.79212,2637.1,2635.9,0.7904]
[1730908808613,11.89279449,2637.2,2635.9,0.7904]
[1730908808775,3.79204,2637.1,2635.9,0.7904]
[1730908808974,8.10078449,2637.2,2635.9,0.7904]
[1730908809385,11.89277449,2637.2,2635.9,0.7904]
[1730908809579,9.37334194,2637.2,2636.0,0.8079]
[1730908809781,3.79207,2637.1,2636.0,0.8079]
[1730908810080,3.79227,2637.0,2636.1,0.07584684]
[1730908810280,3.79248,2636.8,2636.0,0.8079]
[1730908810583,0.458738,2636.7,2636.1,0.88375493]
[1730908810788,3.79227,2637.0,2636.1,0.8079]
[1730908811520,7.58454,2637.0,2636.1,0.8079]
[1730908811682,3.79241,2636.9,2636.1,0.8079]
[1730908812536,3.7925,2636.8,2636.1,0.8079]
[1730908812820,3.79227,2637.0,2636.2,0.07585502]
[1730908813028,0.379227,2636.9,2636.3,0.7531]
[1730908813198,9.37325194,2637.2,2636.4,0.07584863]
[1730908813399,5.06447745,2637.2,2636.1,0.7531]